Cogmind - Beta 15 @@@ ROGUE MODE // 2025.05.14 @ 22:53:16 Player: harambe Result: Destroyed by Y-64 Sentinel with KE Penetrator Performance ------------- Evolutions (5) 2500 Regions Visited (12) 2400 Robots Destroyed (114) 570 Value Destroyed (4314) 4314 Prototype IDs (7) 140 Alien Tech Used (0) 0 Bonus (1555) 1555 TOTAL SCORE: 11479 Bonus ------- High Alert Combat Kills 81 Met Warlord at Base 500 MAIN.C Attacked Warlord 500 Warlord Defense Kills 474 Cogmind --------- Core Integrity 0/1000 Matter 300/300 Energy 99/100 System Corruption 13% Temperature Cool (0) Movement Core (50) Location -4/Proximity Caves Parts ------- > --- POWER (2) -------- (None) > --- PROPULSION (6) --- (None) > --- UTILITY (7) ------ (None) > --- WEAPON (2) ------- (None) > --- INVENTORY (5) ---- Improved Quantum Reactor Improved Medium Treads Structural Scanner Magnetic Acceleration Cannon Peak State ------------ > --- POWER ------------ Light Nuclear Core Light Nuclear Core > --- PROPULSION ------- Improved Treads Improved Treads Medium Treads Medium Treads Wheel Gravmag System > --- UTILITY ---------- High-capacity Storage Unit Advanced Sensor Array Improved Signal Interpreter Improved Terrain Scanner Advanced Terrain Scan Processor Improved Hacking Suite Improved Hacking Suite > --- WEAPON ----------- Vortex Driver Vortex Driver > --- INVENTORY -------- Nuclear Core Micro Nuclear Core Coolant Injector Large Battery Large Battery High-capacity Matter Pod Advanced Weight Redist. System Structural Scanner Advanced ECM Suite Improved Reaction Control System Focal Shield Improved Hacking Suite Plasma Rifle Heavy Ion Cannon Magnetic Acceleration Cannon Magnetic Acceleration Cannon Heavy Flak Cannon Guided EMP Blaster Heavy Hammer [Rating: 74] Favorites ----------- Power Light Nuclear Core Engine Improved Ion Engine Power Core Light Nuclear Core Reactor Improved Quantum Reactor Propulsion Improved Treads Treads Improved Treads Leg Aluminum Leg Wheel Wheel Hover Unit Gravmag System Flight Unit Field Propulsion Drive Utility High-capacity Storage Unit Device Improved Heat Sink Storage High-capacity Storage Unit Processor Improved Signal Interpreter Hackware Improved Hacking Suite Protection Light Armor Plating Weapon Flak Cannon Energy Gun Backup Laser III Energy Cannon Vortex Driver Ballistic Gun Assault Rifle Ballistic Cannon Flak Cannon Launcher EMP Blaster Special Weapon Welding Torch Impact Weapon Heavy Hammer Build | -11 -10 -9 -8 -7 -7 -7 -6 -5 -5 -5 -5 -4 ------- Run | Yrd Mat Mat Mat Fac Low Low Fac Fac Upp Upp War Pro Slots Evolved 10 | . . 2 2 2 . . 2 2 . . . . Power 1 | . . . . . . . 1 . . . . . Propulsion 4 | . . 1 1 1 . . 1 . . . . . Utility 5 | . . 1 1 1 . . . 2 . . . . Weapon . | . . . . . . . . . . . . . Parts Attached 115 | . 19 17 16 27 4 . 16 4 1 2 7 2 Power 18 | . 5 3 3 2 1 . 3 . . . 1 . Engine 12 | . 5 3 2 2 . . . . . . . . Core 5 | . . . 1 . 1 . 3 . . . . . Reactor 1 | . . . . . . . . . . . 1 . Propulsion 34 | . 5 6 6 12 1 . 2 . . 1 . 1 Treads 19 | . 2 3 4 8 1 . . . . 1 . . Leg 1 | . 1 . . . . . . . . . . . Wheel 12 | . 2 3 2 4 . . 1 . . . . . Hover 1 | . . . . . . . 1 . . . . . Flight 1 | . . . . . . . . . . . . 1 Utility 29 | . 5 2 2 8 1 . 5 2 . 1 3 . Device 13 | . 2 1 1 3 1 . 2 1 . . 2 . Storage 5 | . 3 . . 1 . . 1 . . . . . Processor 5 | . . 1 . 3 . . . 1 . . . . Hackware 4 | . . . . 1 . . 2 . . 1 . . Protection 2 | . . . 1 . . . . . . . 1 . Artifact . | . . . . . . . . . . . . . Weapon 34 | . 4 6 5 5 1 . 6 2 1 . 3 1 Energy Gun 6 | . 1 2 . . . . 2 1 . . . . Energy Cannon 5 | . . . . 2 . . 1 . . . 2 . Ballistic Gun 10 | . 2 3 1 1 1 . 1 1 . . . . Ballistic Cannon 6 | . . . 4 . . . 1 . 1 . . . Launcher 4 | . . 1 . 1 . . 1 . . . 1 . Special Weapon 1 | . 1 . . . . . . . . . . . Impact Weapon 2 | . . . . 1 . . . . . . . 1 Slashing Weapon . | . . . . . . . . . . . . . Piercing Weapon . | . . . . . . . . . . . . . Special Melee Weapon . | . . . . . . . . . . . . . Unidentified Prototypes 6 | . . . . . . . 2 . . . 4 . Parts Lost 32 | . 1 . 2 7 5 . 2 . . . 12 3 Power 4 | . . . . . 1 . 1 . . . 2 . Propulsion 15 | . 1 . 1 3 2 . 1 . . . 6 1 Utility 6 | . . . 1 1 . . . . . . 3 1 Weapon 7 | . . . . 3 2 . . . . . 1 1 Highest Loss Streak 12 | . 1 . 2 3 5 . 2 . . . 12 2 To Critical Strikes . | . . . . . . . . . . . . . Average Backups 17 | . 14 19 19 19 17 20 19 18 19 19 18 4 Power 2 | . 3 2 1 2 2 3 2 2 2 2 1 1 Propulsion 1 | . 5 5 6 3 1 1 . . . . . 1 Utility 7 | . 3 6 5 7 9 12 10 9 10 10 9 1 Weapon 5 | . 2 5 5 6 4 4 6 7 7 7 6 1 Tool/Special . | . . . . . . . . . . . . . Unused Backups 58 | . 22 7 5 4 . . 9 . . . 9 2 Power 9 | . 6 . . . . . 1 . . . 2 . Propulsion 16 | . 9 2 2 1 . . 1 . . . . 1 Utility 18 | . 2 2 . 2 . . 6 . . . 6 . Weapon 15 | . 5 3 3 1 . . 1 . . . 1 1 Tool/Special . | . . . . . . . . . . . . . Average Slot Usage (%) 95 | . 98 99 98 99 99 100 98 99 100 100 94 12 Engine 4 | . 14 11 7 7 . . . . . . . . Core 6 | . . . 1 . 6 7 11 11 11 11 10 . Treads 20 | . 12 11 18 19 35 38 28 23 23 23 22 . Wheel 9 | . 12 22 17 18 2 . 6 5 5 5 4 . Hover 2 | . . . . . . . 3 5 5 5 4 . Device 9 | . 12 11 9 8 7 7 6 10 11 11 10 2 Storage 7 | . 14 11 9 10 7 7 6 5 5 5 4 . Processor 9 | . . 10 9 14 23 23 6 10 11 11 10 . Hackware 6 | . . . . 3 . . 12 11 11 11 10 . Energy Gun 3 | . 6 7 3 . . . 4 5 4 . 4 . Energy Cannon 1 | . . . . 3 . . . . . . 5 . Ballistic Gun 6 | . 21 14 3 1 13 15 6 5 5 5 . . Ballistic Cannon 2 | . . . 11 8 . . . . . 5 . . Peak Build Rating 74 | . 12 18 28 38 39 39 55 62 62 66 74 22 Average Rating 41 | . 9 16 26 33 37 39 50 60 62 63 64 12 On Entrance 33 | 6 6 12 18 26 34 39 39 55 62 62 66 14 Naked Turns 94 | . . . . . . . . . . . 32 62 Heaviest Build 84 | 13 52 54 63 68 61 53 63 61 65 65 84 6 Greatest Support 120 | 20 20 22 31 53 120 120 16 10 10 10 74 12 Greatest Overweight (x) 8 | . 5 2 2 2 1 . 6 6 6 6 8 . Average Overweight (x) 3 | . 2 2 1 1 . . 4 5 6 6 5 . Largest Inventory Capacity 20 | . 20 20 20 20 20 20 20 20 20 20 20 5 Average Capacity 18 | . 15 20 20 20 20 20 20 20 20 20 19 5 Most Carried 20 | . 20 20 20 20 20 20 20 20 20 20 20 5 Average Carried 18 | . 14 19 19 19 17 20 19 19 20 20 19 4 Final Capacity 20 | 8 20 20 20 20 20 20 20 20 20 20 5 5 Final Carried 20 | 6 20 20 20 20 20 20 20 20 20 20 5 4 Class Distribution -------------------- 44% | Mutant 30% | Hacker-Skirmisher 17% | Hacker-Mutant 7% | Scavenger-Mutant Dominant Class ---------------- Mutant | -10/Materials Mutant | -9/Materials Mutant | -8/Materials Mutant | -7/Factory Mutant | -7/Lower Caves Mutant | -7/Lower Caves Hacker-Mutant | -6/Factory Hacker-Skirmisher | -5/Factory Hacker-Skirmisher | -5/Upper Caves Hacker-Skirmisher | -5/Upper Caves Hacker-Skirmisher | -5/Warlord Mutant | -4/Proximity Caves Resources | -11 -10 -9 -8 -7 -7 -7 -6 -5 -5 -5 -5 -4 ----------- Run | Yrd Mat Mat Mat Fac Low Low Fac Fac Upp Upp War Pro Matter Collected 3856 | 200 433 583 406 1016 334 103 269 . 58 57 355 42 Remotely . | . . . . . . . . . . . . . Salvage Created 4309 | . 672 843 561 1378 231 . 478 . 58 . 67 21 Parts 204 | . 39 41 32 50 8 . 28 . 5 . 1 . Haulers Intercepted 2 | . . . . 2 . . . . . . . . Recyclers Shooed 4 | . . 2 1 1 . . . . . . . . Parts Field Recycled . | . . . . . . . . . . . . . Retrieved Matter . | . . . . . . . . . . . . . Parts Self-Destructed 12 | . . . . . 7 . . . 5 . . . Prevented 7 | . . . . . 2 . . . 5 . . . Kills | -11 -10 -9 -8 -7 -7 -7 -6 -5 -5 -5 -5 -4 ------- Run | Yrd Mat Mat Mat Fac Low Low Fac Fac Upp Upp War Pro Combat Hostiles Destroyed 96 | . 16 17 19 27 5 . 7 . 1 . 3 1 Melee 1 | . . . . . . . . . . . . 1 Guns 52 | . 16 17 8 3 3 . 4 . 1 . . . Cannons 28 | . . . 11 12 2 . . . . . 3 . AOE 13 | . . . . 11 . . 2 . . . . . Classes Destroyed 15 | . 5 1 2 5 . . 1 . . . 1 . Worker 3 | . 1 1 . . . . 1 . . . . . Hauler 2 | . . . . 2 . . . . . . . . Recycler 7 | . 1 1 . 5 . . . . . . . . Operator 5 | . 1 1 1 2 . . . . . . . . Watcher 1 | . . . . 1 . . . . . . . . Swarmer 14 | . 3 . 4 6 . . . . . . . 1 Grunt 55 | . 13 13 8 14 3 . 3 . . . 1 . Brawler 2 | . . . . 1 1 . . . . . . . Duelist 1 | . . . . 1 . . . . . . . . Sentry 10 | . . 4 5 1 . . . . . . . . Specialist 2 | . . . . . . . 2 . . . . . Hunter 4 | . . . 1 1 1 . . . . . 1 . Programmer 5 | . . . . 2 . . 2 . 1 . . . Heavy 2 | . . . 1 1 . . . . . . . . Striker 1 | . . . . . . . . . . . 1 . Best Kill Streak 8 | . 6 6 5 8 5 . 4 . 1 . 3 1 Combat Bots Only 5 | . 4 5 5 5 5 . 3 . 1 . 3 1 Max Kills in Single Turn 3 | . 1 1 1 3 2 . 2 . 1 . 1 1 Gunslinging 1 | . . . . . 1 . . . . . . . Exploded 3 | . . . . 3 . . 1 . . . . . Melee 1 | . . . . . . . . . . . . 1 Uniques/NPCs Destroyed . | . . . . . . . . . . . . . Combat | -11 -10 -9 -8 -7 -7 -7 -6 -5 -5 -5 -5 -4 -------- Run | Yrd Mat Mat Mat Fac Low Low Fac Fac Upp Upp War Pro Hostile Shots Fired 652 | . 74 62 73 163 54 . 48 . 6 3 94 75 Missed 181 | . 18 20 20 40 11 . 12 . 1 1 26 32 Hits 471 | . 56 42 53 123 43 . 36 . 5 2 68 43 Melee 8 | . . . . 3 4 . . . . . 1 . Projectile 463 | . 56 42 53 120 39 . 36 . 5 2 67 43 Critical Strikes 27 | . 2 . 4 7 4 . 3 . . . 4 3 Damage Taken 8149 | . 650 546 879 2056 731 . 641 . 103 52 1602 889 Core 1838 | . 133 99 153 262 124 . 67 . . 27 604 369 Absorbed by Shields . | . . . . . . . . . . . . . Regen/Repaired (Parts) 152 | . . . . . . . . 23 . . 129 . Core Remaining (%) 71 | 100 46 75 72 . . 44 92 . . . . . Volleys Fired 297 | . 61 52 43 91 11 . 19 1 5 9 5 . Largest 2 | . 2 2 2 2 2 . 2 2 2 1 2 . Hottest 200 | . 70 88 93 97 97 . 103 105 105 44 200 . Shots Fired 536 | . 120 96 82 158 18 . 34 2 8 9 9 . Gun 304 | . 118 95 28 12 13 . 30 2 6 . . . Cannon 207 | . . . 54 129 4 . . . 2 9 9 . Launcher 23 | . . 1 . 17 1 . 4 . . . . . Special 2 | . 2 . . . . . . . . . . . Kinetic 381 | . 81 72 69 116 13 . 15 1 5 9 . . Thermal 108 | . 39 23 13 23 . . 6 1 3 . . . Explosive 3 | . . 1 . 2 . . . . . . . . Electromagnetic 35 | . . . . 17 5 . 13 . . . . . Entropic 9 | . . . . . . . . . . . 9 . Robot Hit Streak 20 | . 17 17 18 20 7 . 14 . 1 . 5 . Robot Miss Streak 11 | . 4 3 9 11 2 . 4 2 4 . 1 . Penetration Max 1 | . . . . . . . . . . . 1 . Secondary Targets 6 | . 2 1 . . 1 . 2 . . . . . Max Gunslinging Chain 1 | . 1 1 . . 1 . 1 . . . . . Shots Hit Robots 432 | . 84 77 67 148 16 . 25 . 2 . 8 5 Core Hits 337 | . 36 46 92 125 19 . 14 . 2 . 3 . Critical Kills . | . . . . . . . . . . . . . Critical Parts Destroyed 3 | . . 1 . . . . . . . . . 2 Critical Strikes 11 | . 4 1 . . . . . . . . 4 2 Burn 4 | . 4 . . . . . . . . . . . Destroy 1 | . . 1 . . . . . . . . . . Smash 2 | . . . . . . . . . . . . 2 Sunder 4 | . . . . . . . . . . . 4 . Melee Attacks 20 | . . . . 1 . . . . . . . 19 Impact 20 | . . . . 1 . . . . . . . 19 Slashing . | . . . . . . . . . . . . . Piercing . | . . . . . . . . . . . . . Sneak Attacks . | . . . . . . . . . . . . . Combat Hostiles . | . . . . . . . . . . . . . Follow-up Attacks . | . . . . . . . . . . . . . Damage Inflicted 9327 | . 1092 1107 1275 3416 354 . 743 . 54 . 1056 230 Guns 3481 | . 1092 1081 346 256 210 . 442 . 54 . . . Cannons 3857 | . . . 901 1794 106 . . . . . 1056 . Explosions 1736 | . . 26 28 1343 38 . 301 . . . . . Melee 230 | . . . . . . . . . . . . 230 Ramming 23 | . . . . 23 . . . . . . . . Kinetic 4550 | . 689 757 1067 1626 210 . 201 . . . . . Thermal 2032 | . 403 324 180 897 . . 174 . 54 . . . Explosive 323 | . . 26 . 297 . . . . . . . . Electromagnetic 1113 | . . . 28 573 144 . 368 . . . . . Impact 230 | . . . . . . . . . . . . 230 Slashing . | . . . . . . . . . . . . . Piercing . | . . . . . . . . . . . . . Entropic 1056 | . . . . . . . . . . . 1056 . Highest Corruption 13 | . . . . 2 2 2 6 . 1 1 10 13 Average Corruption 4 | . . . . 1 2 2 4 . 1 1 3 11 Corruption Purged . | . . . . . . . . . . . . . Corruption Blocked . | . . . . . . . . . . . . . Effects 52 | . . . . 1 5 1 27 . 2 2 3 11 Message Errors 14 | . . . . . 1 . 10 . . 1 . 2 Matter Fused 15 | . . . . . 3 . 7 . 1 . 1 3 Heat Flow Errors 2 | . . . . . . . 2 . . . . . Energy Discharges 10 | . . . . 1 . 1 5 . . 1 1 1 Parts Rejected 1 | . . . . . . . . . . . . 1 Data Loss (minor) 8 | . . . . . 1 . 3 . 1 . . 3 Alerts 1 | . . . . . . . . . . . 1 . Misdirections 1 | . . . . . . . . . . . . 1 Overload Shots 1 | . . . . . . . 1 . . . . . Overflow Damage 413 | . . . . 154 . . . . . . 159 100 Projectiles 175 | . . . . 16 . . . . . . 159 . Explosions 138 | . . . . 138 . . . . . . . . Melee 100 | . . . . . . . . . . . . 100 Knockbacks 60 | . . . 13 46 . . . . . . . 1 Impact 2 | . . . . 1 . . . . . . . 1 Kinetic 56 | . . . 11 45 . . . . . . . . Secondary 2 | . . . 2 . . . . . . . . . Self-Inflicted Damage 40 | . . . . 31 9 . . . . . . . Shots 2 | . . . . 1 1 . . . . . . . Rammed 3 | . . . . 3 . . . . . . . . Targets Rammed 3 | . . . . 3 . . . . . . . . Kicked . | . . . . . . . . . . . . . Crushed . | . . . . . . . . . . . . . Highest Temperature 354 | . 27 2 81 53 11 . 240 52 104 . 354 329 Average Temperature 53 | . 13 2 26 18 11 . 68 34 56 . 184 182 Received Heat Transfer 2334 | . 381 279 162 501 270 . 174 . . 9 144 414 Effects 1 | . . . . . . . 1 . . . . . Energy Bleed 1 | . . . . . . . 1 . . . . . Siege Activations . | . . . . . . . . . . . . . Martial Activations . | . . . . . . . . . . . . . Shielding Activations . | . . . . . . . . . . . . . Robots Disrupted 1 | . . . 1 . . . . . . . . . Combat Hostiles 1 | . . . 1 . . . . . . . . . Robots Corrupted 2 | . . . . 1 . . 1 . . . . . Combat Hostiles 2 | . . . . 1 . . 1 . . . . . Parts Fried 6 | . . . . 4 . . 1 . . . . 1 Impact Corruptions 4 | . . . . . . . . . . . . 4 Robots Melted . | . . . . . . . . . . . . . Combat Hostiles . | . . . . . . . . . . . . . Parts Melted 2 | . 1 1 . . . . . . . . . . Heat Transferred 3747 | . 1480 551 215 1190 . . 211 . 100 . . . Parts Sabotaged . | . . . . . . . . . . . . . Parts Stolen . | . . . . . . . . . . . . . Parts Stripped . | . . . . . . . . . . . . . Power Chain Reactions 8 | . . . . 7 . . 1 . . . . . Alert | -11 -10 -9 -8 -7 -7 -7 -6 -5 -5 -5 -5 -4 ------- Run | Yrd Mat Mat Mat Fac Low Low Fac Fac Upp Upp War Pro Maximum Alert Level 2 | . . 1 2 2 . . . . . . . . Low Security (%) 78 | . 100 68 25 56 . . 100 100 . . . . Level 1 18 | . . 31 58 40 . . . . . . . . Level 2 2 | . . . 15 3 . . . . . . . . Level 3 . | . . . . . . . . . . . . . Level 4 . | . . . . . . . . . . . . . Level 5 . | . . . . . . . . . . . . . High Security . | . . . . . . . . . . . . . Max Security . | . . . . . . . . . . . . . Peak Influence 495 | . 173 323 443 495 . . 97 16 . . . . Initial 196 | . . 39 126 196 . . 65 . . . . . Average 120 | . 88 181 251 215 . . 25 . . . . . Influence Increases 2860 | . 440 522 564 761 120 . 237 16 30 . 75 95 Destroy 0b10 Robot/C 1920 | . 320 340 380 540 100 . 140 . 20 . 60 20 Destroy 0b10 Robot/NC 90 | . 15 15 5 50 . . 5 . . . . . Destroy Leader 466 | . 60 100 110 126 20 . 40 . 10 . . . Successful Hack 93 | . 14 27 21 . . . 15 16 . . . . Disable Machine 90 | . . 15 45 . . . 30 . . . . . Destroy Structure 36 | . 1 10 3 15 . . 7 . . . . . Lose Combat Pursuer 165 | . 30 15 . 30 . . . . . . 15 75 Influence Decreases 2860 | . 347 316 431 704 392 112 342 16 30 . 75 95 Entered New Map 727 | . . 54 173 236 182 42 40 . . . . . Time Decay 1891 | . 337 262 238 398 160 70 282 16 30 . 18 80 Lost Part 242 | . 10 . 20 70 50 . 20 . . . 57 15 Squads Dispatched 31 | . 3 4 8 10 . . 5 1 . . . . Investigation 12 | . 3 3 4 1 . . 1 . . . . . Extermination 3 | . . . . 1 . . 2 . . . . . Reinforcement 11 | . . 1 2 5 . . 2 1 . . . . Assault . | . . . . . . . . . . . . . Garrison 5 | . . . 2 3 . . . . . . . . Intercept . | . . . . . . . . . . . . . Searches Triggered . | . . . . . . . . . . . . . Construction Impeded 1 | . . . . . . . 1 . . . . . Haulers Reinforced 2 | . . . . 2 . . . . . . . . Active Scanning Responses . | . . . . . . . . . . . . . Cargo Convoy Interrupts . | . . . . . . . . . . . . . Stealth | -11 -10 -9 -8 -7 -7 -7 -6 -5 -5 -5 -5 -4 --------- Run | Yrd Mat Mat Mat Fac Low Low Fac Fac Upp Upp War Pro Distress Signals 6 | . 2 1 . 1 . . . . . . 1 1 Communications Jammed . | . . . . . . . . . . . . . Distress Signals . | . . . . . . . . . . . . . Times Spotted 154 | . 26 20 22 34 5 . 10 2 1 6 15 13 Peak Tracking Total 13 | . 7 3 5 5 5 . 3 1 1 9 13 6 Tactical Retreats 9 | . 1 1 . 2 . . . . . . 1 4 Traps | -11 -10 -9 -8 -7 -7 -7 -6 -5 -5 -5 -5 -4 ------- Run | Yrd Mat Mat Mat Fac Low Low Fac Fac Upp Upp War Pro Traps Triggered 4 | . 1 . 1 1 . . . 1 . . . . Indirectly . | . . . . . . . . . . . . . Trap Hack Attempts . | . . . . . . . . . . . . . Triggered . | . . . . . . . . . . . . . Disarmed . | . . . . . . . . . . . . . Reprogrammed . | . . . . . . . . . . . . . Reused . | . . . . . . . . . . . . . Traps Extracted . | . . . . . . . . . . . . . Installed . | . . . . . . . . . . . . . Triggered . | . . . . . . . . . . . . . Machines | -11 -10 -9 -8 -7 -7 -7 -6 -5 -5 -5 -5 -4 ---------- Run | Yrd Mat Mat Mat Fac Low Low Fac Fac Upp Upp War Pro Machines Disabled 7 | . 1 1 3 . . . 2 . . . . . Max in Single Turn 3 | . 1 1 3 . . . 1 . . . . . Garrison Access 2 | . . . . . . . 2 . . . . . Machines Repaired . | . . . . . . . . . . . . . Machines Dismantled . | . . . . . . . . . . . . . Machines Sabotaged . | . . . . . . . . . . . . . Overloaded Fab Kills . | . . . . . . . . . . . . . Hacking | -11 -10 -9 -8 -7 -7 -7 -6 -5 -5 -5 -5 -4 --------- Run | Yrd Mat Mat Mat Fac Low Low Fac Fac Upp Upp War Pro Machines Accessed 34 | . 5 6 4 1 . . 6 1 1 . 10 . Terminals 20 | . 5 6 4 1 . . 3 . 1 . . . Fabricators . | . . . . . . . . . . . . . Repair Stations 1 | . . . . . . . . 1 . . . . Recycling Units . | . . . . . . . . . . . . . Scanalyzers 1 | . . . . . . . 1 . . . . . Garrison Access 2 | . . . . . . . 2 . . . . . Total Hacks 98 | . 22 22 15 3 . . 19 2 1 . 14 . Successful 60 | . 10 12 6 . . . 15 2 1 . 14 . Failed 36 | . 11 10 9 3 . . 3 . . . . . Catastrophic 2 | . . 1 1 . . . . . . . . . Database Lockouts 2 | . 1 . . . . . 1 . . . . . Manual 59 | . 19 16 15 1 . . 7 . . . 1 . Terminals 76 | . 22 22 15 3 . . 13 . 1 . . . Fabricators . | . . . . . . . . . . . . . Repair Stations 2 | . . . . . . . . 2 . . . . Recycling Units . | . . . . . . . . . . . . . Scanalyzers 4 | . . . . . . . 4 . . . . . Garrison Access 2 | . . . . . . . 2 . . . . . Terminal Hacks 37 | . 5 8 1 . . . 8 . 1 . 14 . Record 16 | . . . . . . . 3 . 1 . 12 . Part Schematic 3 | . . 3 . . . . . . . . . . Robot Analysis 7 | . 2 2 1 . . . 2 . . . . . Open Door 2 | . . . . . . . . . . . 2 . Terminal Index 1 | . . . . . . . 1 . . . . . Locate Traps 8 | . 3 3 . . . . 2 . . . . . Fabricator Hacks . | . . . . . . . . . . . . . Repair Station Hacks 2 | . . . . . . . . 2 . . . . Scan Component 1 | . . . . . . . . 1 . . . . Repair 1 | . . . . . . . . 1 . . . . Recycling Unit Hacks . | . . . . . . . . . . . . . Scanalyzer 3 | . . . . . . . 3 . . . . . Insert Component 2 | . . . . . . . 2 . . . . . Analyze 1 | . . . . . . . 1 . . . . . Garrison Access Hacks 2 | . . . . . . . 2 . . . . . Seal Access 2 | . . . . . . . 2 . . . . . Unauthorized Hacks 16 | . 5 4 5 . . . 2 . . . . . Terminals 16 | . 5 4 5 . . . 2 . . . . . Botnet 15 | . 5 4 4 . . . 2 . . . . . Operators 1 | . . . 1 . . . . . . . . . Fabricators . | . . . . . . . . . . . . . Repair Stations . | . . . . . . . . . . . . . Recycling Units . | . . . . . . . . . . . . . Scanalyzers . | . . . . . . . . . . . . . Garrison Access . | . . . . . . . . . . . . . Data Cores Recovered 1 | . 1 . . . . . . . . . . . Used . | . . . . . . . . . . . . . Hacking Detections 18 | . 5 6 3 1 . . 2 1 . . . . Full Trace Events 12 | . 3 4 3 1 . . 1 . . . . . Feedback Events . | . . . . . . . . . . . . . Feedback Blocked . | . . . . . . . . . . . . . Robot Schematics Acquired . | . . . . . . . . . . . . . Robots Built . | . . . . . . . . . . . . . Authchips . | . . . . . . . . . . . . . Time . | . . . . . . . . . . . . . Total Robot Build Rating . | . . . . . . . . . . . . . Part Schematics Acquired 3 | . . 3 . . . . . . . . . . Parts Built . | . . . . . . . . . . . . . Authchips . | . . . . . . . . . . . . . Time . | . . . . . . . . . . . . . Total Part Build Rating . | . . . . . . . . . . . . . Parts Repaired 1 | . . . . . . . . 1 . . . . Time 25 | . . . . . . . . 25 . . . . Parts Recycled . | . . . . . . . . . . . . . Recycled Matter . | . . . . . . . . . . . . . Retrieved Matter . | . . . . . . . . . . . . . Retrieved Components . | . . . . . . . . . . . . . Parts Scanalyzed 1 | . . . . . . . 1 . . . . . Part Schematics Acquired . | . . . . . . . . . . . . . Parts Damaged . | . . . . . . . . . . . . . Bothacking | -11 -10 -9 -8 -7 -7 -7 -6 -5 -5 -5 -5 -4 ------------ Run | Yrd Mat Mat Mat Fac Low Low Fac Fac Upp Upp War Pro Used RIF Installer . | . . . . . . . . . . . . . Robots Hacked . | . . . . . . . . . . . . . Non-combat . | . . . . . . . . . . . . . Combat . | . . . . . . . . . . . . . Robot Hacks Applied . | . . . . . . . . . . . . . Relay Couplers Released . | . . . . . . . . . . . . . Fabnet Peak Effective % . | . . . . . . . . . . . . . Robots Rewired . | . . . . . . . . . . . . . Allies Hacked . | . . . . . . . . . . . . . Hacks Repelled . | . . . . . . . . . . . . . Allies | -11 -10 -9 -8 -7 -7 -7 -6 -5 -5 -5 -5 -4 -------- Run | Yrd Mat Mat Mat Fac Low Low Fac Fac Upp Upp War Pro Total Allies . | . . . . . . . . . . . . . Largest Group . | . . . . . . . . . . . . . Highest-Rated Group . | . . . . . . . . . . . . . Highest-Rated Ally . | . . . . . . . . . . . . . Total Orders . | . . . . . . . . . . . . . Ally Attacks . | . . . . . . . . . . . . . Total Damage . | . . . . . . . . . . . . . Kills . | . . . . . . . . . . . . . Allies Corrupted . | . . . . . . . . . . . . . Allies Melted 1 | . . . . . . . . . . . 1 . Intel | -11 -10 -9 -8 -7 -7 -7 -6 -5 -5 -5 -5 -4 ------- Run | Yrd Mat Mat Mat Fac Low Low Fac Fac Upp Upp War Pro Active Infowar (turns) 3112 | . . 7 . 1 . . 620 305 547 387 1245 . Sensors 3066 | . . . . . . . 620 280 547 387 1232 . Terrain 2484 | . . . . . . . . 305 547 387 1245 . Structural 7 | . . 7 . . . . . . . . . . ECM 1 | . . . . 1 . . . . . . . . Robot Analysis Total 7 | . 2 2 1 . . . 2 . . . . . Derelict Logs Recovered 4 | . . . . . 2 1 . . 1 . . . Drone Launches . | . . . . . . . . . . . . . Drone Recoveries . | . . . . . . . . . . . . . Exploration | -11 -10 -9 -8 -7 -7 -7 -6 -5 -5 -5 -5 -4 ------------- Run | Yrd Mat Mat Mat Fac Low Low Fac Fac Upp Upp War Pro Turns Passed 7588 | . 951 579 501 950 336 157 1299 305 547 387 1291 285 Spaces Moved 4548 | 1 512 300 295 505 187 99 742 162 312 216 758 459 Core 325 | . . . . . . . . . . . 61 264 Treads 325 | . 43 . . . 181 99 . . . . 2 . Legs 40 | 1 39 . . . . . . . . . . . Wheels 3663 | . 430 300 295 505 6 . 742 162 312 216 695 . Hover . | . . . . . . . . . . . . . Flight 195 | . . . . . . . . . . . . 195 Fastest Speed 45 | 120 95 110 100 98 115 160 145 155 170 170 50 45 Average Speed 134 | 120 130 113 105 116 158 160 151 158 170 170 163 47 Slowest Speed 240 | 120 240 115 120 130 160 160 170 170 170 170 240 50 Overloaded Moves . | . . . . . . . . . . . . . Propulsion Burnouts . | . . . . . . . . . . . . . Robots Hopped . | . . . . . . . . . . . . . Potential Cave-ins 3 | . . . . . . . . . . . . 3 Cave-ins Triggered 1 | . . . . . . . . . . . . 1 Exploration Rate (%) 38 | 2 75 40 30 15 39 15 23 7 47 43 91 76 Regions Visited 12 Branch Regions 6 Pre-discovered Areas 1 | . . . . . 1 . . . . . . . Known Exits Taken 8 | . . . . 1 1 1 1 1 1 1 1 . Unknown Exits Taken 4 | 1 1 1 1 . . . . . . . . . Scrap Searched 6 | . . . . . 2 1 . . . 1 . 2 Spaces Dug 19 | . . . . 1 . . . . 2 9 . 7 Terrain Destroyed 56 | . . 8 . 21 . . 7 . 2 9 2 7 Melee 8 | . . . . 1 . . . . . . . 7 Projectile 13 | . . . . . . . . . 2 9 2 . AOE 35 | . . 8 . 20 . . 7 . . . . . Terrain Rammed . | . . . . . . . . . . . . . Walls Destroyed . | . . . . . . . . . . . . . Machines Disabled . | . . . . . . . . . . . . . Actions | -11 -10 -9 -8 -7 -7 -7 -6 -5 -5 -5 -5 -4 --------- Run | Yrd Mat Mat Mat Fac Low Low Fac Fac Upp Upp War Pro Total 5524 | . 694 457 410 716 208 98 892 209 321 227 802 490 Wait 275 | . 37 46 28 31 . . 70 30 4 . 19 10 Move 4535 | . 511 299 294 504 186 98 741 161 311 215 757 458 Hop . | . . . . . . . . . . . . . Pick Up 121 | . 36 18 13 23 4 . 21 2 . . 4 . Fast Attach 13 | . 1 . 2 . . . 3 2 . . 4 1 Attach 32 | . 1 2 5 10 5 . 3 2 . . 3 1 Detach 1 | . . . . . . . . . . . 1 . Swap 91 | . 17 16 10 29 2 . 13 1 1 2 . . Drop 127 | . 30 24 15 24 . . 22 2 . 1 9 . Fire 297 | . 61 52 43 91 11 . 19 1 5 9 5 . Melee 20 | . . . . 1 . . . . . . . 19 Ram 3 | . . . . 3 . . . . . . . . Kick . | . . . . . . . . . . . . . Crush . | . . . . . . . . . . . . . Escape Stasis 9 | . . . . . . . . 8 . . . 1 Rewire . | . . . . . . . . . . . . . Trap . | . . . . . . . . . . . . . Miscellaneous . | . . . . . . . . . . . . . Route ------- -11/Scrapyard -10/Materials (discovered 3 exits: *Mat x2 / [*Min]) -9/Materials -8/Materials -7/Factory -7/Lower Caves -7/Lower Caves -6/Factory (discovered 2 exits: *Fac / *Low) -5/Factory -5/Upper Caves -5/Upper Caves -5/Warlord -4/Proximity Caves History --------- Turn | Location | Event 1 | -11/Scrapyard | Discovered new exit (range 0) 1 | -11/Scrapyard | Entered Materials 315 | -10/Materials | Discovered new exit (range 8) 317 | -10/Materials | Build established: Mutant 655 | -10/Materials | Discovered new exit (range 16) 687 | -10/Materials | Central database locked down 806 | -10/Materials | Core integrity fell below 50% 877 | -10/Materials | Discovered new exit (range 16) 952 | -10/Materials | Entered another Materials area 952 | -9/Materials | Evolved 2 slots: Propulsion x1, Utility x1 1491 | -9/Materials | Discovered new exit (range 10) 1531 | -9/Materials | Entered another Materials area 1531 | -8/Materials | Evolved 2 slots: Propulsion x1, Utility x1 1869 | -8/Materials | Garrison activated, responded to threat 1975 | -8/Materials | Discovered new exit (range 16) 2032 | -8/Materials | Entered Factory 2032 | -7/Factory | Evolved 2 slots: Propulsion x1, Utility x1 2277 | -7/Factory | Garrison activated, responded to threat 2682 | -7/Factory | Build established: Scavenger-Mutant 2769 | -7/Factory | Discovered new exit (range 16) 2833 | -7/Factory | Lost 3 parts (3w) 2948 | -7/Factory | Identified exit to Lower Caves 2982 | -7/Factory | Entered Lower Caves 3015 | -7/Lower Caves | Core integrity fell below 50% 3040 | -7/Lower Caves | Lost 5 parts (1p2n2w) 3072 | -7/Lower Caves | Build established: Mutant 3110 | -7/Lower Caves | Identified exit to Lower Caves 3318 | -7/Lower Caves | Entered another Lower Caves area 3319 | -7/Lower Caves | Encountered a Warlord checkpoint 3374 | -7/Lower Caves | Learned Factory emergency access door positions 3453 | -7/Lower Caves | Discovered new exit (range 13) 3474 | -7/Lower Caves | Identified exit to Factory 3475 | -7/Lower Caves | Entered Factory 3475 | -6/Factory | Evolved 2 slots: Power x1, Propulsion x1 3533 | -6/Factory | Central database locked down 3955 | -6/Factory | Build established: Hacker-Mutant 4540 | -6/Factory | Discovered new exit (range 16) 4579 | -6/Factory | Identified exit to Lower Caves 4751 | -6/Factory | Discovered new exit (range 14) 4773 | -6/Factory | Identified exit to Factory 4774 | -6/Factory | Entered another Factory area 4774 | -5/Factory | Evolved 2 slots: Utility x2 4847 | -5/Factory | Repaired Adv. Sensor Array 4986 | -5/Factory | Spotted B-75 Beast 5024 | -5/Factory | Discovered new exit (range 14) 5077 | -5/Factory | Identified exit to Upper Caves 5079 | -5/Factory | Entered Upper Caves 5142 | -5/Upper Caves | Build established: Hacker-Skirmisher 5618 | -5/Upper Caves | Discovered new exit (range 6) 5625 | -5/Upper Caves | Identified exit to Upper Caves 5626 | -5/Upper Caves | Entered another Upper Caves area 5969 | -5/Upper Caves | Discovered new exit (range 15) 6011 | -5/Upper Caves | Identified exit to Warlord 6013 | -5/Upper Caves | Attracted the attention of an 0b10 outpost 6013 | -5/Upper Caves | Entered Warlord 6056 | -5/Warlord | Discovered new exit (range 12) 6070 | -5/Warlord | Identified exit to Proximity Caves 6120 | -5/Warlord | System corruption cleaned by Quarantine Array 6426 | -5/Warlord | Met Warlord 6433 | -5/Warlord | Warlord's base attacked by MAIN.C 6656 | -5/Warlord | Found Prototype Energy Cannon 6656 | -5/Warlord | Identified Vortex Driver 6659 | -5/Warlord | Found Vortex Driver 6783 | -5/Warlord | Warlord forces counterattacked 7107 | -5/Warlord | Opened side exit 7108 | -5/Warlord | Warlord base infiltrated, sounded retreat 7235 | -5/Warlord | Spotted Executioner 7236 | -5/Warlord | Spotted Striker 7254 | -5/Warlord | Destroyed Striker 7258 | -5/Warlord | Released all parts (5) 7261 | -5/Warlord | Core integrity fell below 50% 7263 | -5/Warlord | System corruption reached 10% 7285 | -5/Warlord | Lost 12 parts (2p6n3u1w) 7304 | -5/Warlord | Entered Proximity Caves 7325 | -4/Proximity Caves | Lost 6 allies 7362 | -4/Proximity Caves | Spotter reported a threat 7415 | -4/Proximity Caves | Spotter reported a threat 7423 | -4/Proximity Caves | Spotted B-86 Titan 7467 | -4/Proximity Caves | Attracted the attention of an 0b10 checkpoint 7488 | -4/Proximity Caves | Crushed by falling debris 7523 | -4/Proximity Caves | Core integrity fell below 20% 7552 | -4/Proximity Caves | Build established: Mutant 7589 | -4/Proximity Caves | Destroyed by Y-64 Sentinel with KE Penetrator Last Messages --------------- 07470_ Slug penetrates Wall. 07471_ P-70 Sage heat damages Hpw. Shock Rifle, Imp. Target Analyzer. 07471_ P-70 Sage misfires. 07472_ Slug penetrates Wall. 07473_ P-70 Sage heat spikes uncontrollably. 07488_ The unstable cave ceiling collapses. 07488_ Crushed by falling debris. 07492_ System corrupted: Energy discharge (-25). 07512_ System corrupted: Matter fused (-7). 07521_ Slug penetrates Wall. 07521_ Penetrated by Slug. 07527_ Critical hit (Meltdown: +360). 07527_ Hvy. Hammer destroyed. 07527_ Penetrated by Slug. 07528_ Acquired 2 matter. 07528_ Slug penetrates Wall. 07533_ VPA 07540_ Slug penetrates Wall. 07559_ System corrupted: Component data lost. 07587_ Penetrated by Slug. Map ----- +----------------------------------------------------+ | | | | | | | | | | | | | | | ?????????????????????????????????????????????????? | | ?????????????????????????????????????????????????? | | ?????????????????????????????????????????????????? | | ?????????????????????????????????????????????????? | | ?????????????????????????????????????????????????? | | ?????????????????????????????????????????????????? | | ?????????????????????????????????????????????????? | | ?????????????????????????????????????????????????? | | ?????????????????????????????????????????????????? | | ?????????????????????????????????????????????????? | | ?????????????????????????????????????????????????? | | ?????????????????????????????????????????????????? | | ?????????????????????????????????????????????????? | | ?????????????????????????????????????????????????? | | ?????????????????????????????????????????????????? | | ?????????????#####??????####?????????????????????? | | ????????????## ##?##### #?????????????????????? | | ######???#### ###;## #?????????????????????? | | #???# @ ####??????????????????# | | ###?# ?????????????## | | ## ## ?????????# | | ####???# ## #### g # ## ????????## | | ##?????# ## #??# ##???? ##????#### | | ##??### ## #??# gg ###??????????### | | ##?# ## #?? ##????????????# | | ### #### #?# ##?????????????# ### | | #??# #? ###??????####### ##?? | | #??# ## #??????# ## ### ##?# | | ## #####?## ## #??????# #"#?# ### | | ### ###?????# #??##### #### ## | | ??## ##??????# # #####$ #?## ### | | ##?# #??????# #???# #?# % ## | | #?###??????# # ##???# ####??# | | #??????????## # #????# #?????# | | ##???????????# #????# #?????## #### | | #????????????## ##????# #??????## ####??? | | ???????????????#??????# #????###### ####### | | ##????????????????????# #???## #### ## | | ##????????????#####?## #?### ### | | #?????????#### #?# ### ####" | | #?????????## ??# ##?# | | ##????????# ???## ###??# | | ###??????# #????" ##???# | +----------------------------------------------------+ Best States ------------- Heat Dissipation 51 Energy Generation 29 Energy Capacity 350 Matter Stores 300 Matter Capacity 450 Sight Range 16 Robot Scan Range 16 Terrain Scan Range 16 Terrain Scan Density 210 Additional Mass Support 9 Armor Coverage 150 Evasion (%) 61 Targeting Accuracy 16 Recoil Reduction 5 Offensive Hacking 24 Item Schematics ----------------- Lgt. Treads | -9/Materials | Hacked Arm. Wheel | -9/Materials | Hacked Imp. Treads | -9/Materials | Hacked Robot Schematics ------------------ None Fabricated ------------ Nothing Repaired ---------- Adv. Sensor Array | 4% | -5/Factory Alien Tech Used ----------------- None Achievements -------------- None Challenges ------------ None Game ------ Seed CryofiberDirectedSpear Manual? 0 Play Time 02:27:37 Cumulative 184.4 hours Start 2025.05.14 @ 20:11:47 End 2025.05.14 @ 22:53:16 Sessions 1 Manual Loads 0 Difficulty Rogue Special Mode None Game No. 94 Rogue 94 Adventurer 0 Explorer 0 Win Type - Total 3 Types 3/0/0/0/0/0/0/0/0/0 Lore% 32 Gallery% 49 Achievement% 42 Wizard Run 0 Options --------- Layout 0 ASCII 0 Keyboard 0 Movement Mouse Keybinds 0 Fullscreen 1 Font 18/SmallcapsGlow Map View 76x50 Zoom Use 0% Tactical HUD 1 Map Filters NONE Filters NONE Steam 1 RUN: b301ad3c-efdd-4177-8d08-0b8f5bb36c51